Cogmind - Beta 12 @@@ ROGUE MODE // 2023.03.09 @ 00:28:19 Player: Red Box Result: Smashed by cave-in Performance ------------- Evolutions (0) 0 Regions Visited (2) 400 Robots Destroyed (15) 75 Value Destroyed (337) 337 Prototype IDs (0) 0 Alien Tech Used (0) 0 Bonus (0) 0 TOTAL SCORE: 812 Bonus ------- None Cogmind --------- Core Integrity 0/250 Matter 300/300 Energy 248/250 System Corruption 9% Temperature Cool (0) Movement Core (600) Ox11 Location -10/Mines Parts ------- > --- POWER (1) -------- Ion Engine > --- PROPULSION (2) --- (None) > --- UTILITY (2) ------ Improved Heat Sink Large Storage Unit > --- WEAPON (2) ------- Particle Cannon (fused) Particle Cannon > --- INVENTORY (15) --- Ion Engine Wheel Wheel High-capacity Storage Unit Large Battery (200) Improved Terrain Scanner Targeting Computer ECM Suite Core Shielding Heavy EM Pulse Gun Beamcaster Particle Cannon Particle Cannon Rocket Launcher Hammer Peak State ------------ > --- POWER ------------ Ion Engine > --- PROPULSION ------- Wheel Compact Wheel > --- UTILITY ---------- Improved Heat Sink Large Storage Unit > --- WEAPON ----------- Particle Cannon Particle Cannon > --- INVENTORY -------- Ion Engine Wheel Wheel Wheel High-capacity Storage Unit Large Battery Improved Terrain Scanner Targeting Computer ECM Suite EM Pulse Gun Heavy EM Pulse Gun Particle Cannon Particle Cannon Rocket Launcher Hammer [Rating: 13] Favorites ----------- Power Ion Engine Engine Ion Engine Propulsion Compact Wheel Leg Aluminum Leg Wheel Compact Wheel Utility Large Storage Unit Device Improved Terrain Scanner Storage Large Storage Unit Weapon Particle Cannon Energy Gun Medium Laser Energy Cannon Particle Cannon Ballistic Gun Light Assault Rifle Ballistic Cannon Light Cannon Launcher Rocket Launcher Impact Weapon Hammer Build | -11 -10 -10 ------- Run | Jun Mat Min Slots Evolved . | . . . Power . | . . . Propulsion . | . . . Utility . | . . . Weapon . | . . . Parts Attached 33 | 11 19 3 Power 4 | 1 3 . Engine 4 | 1 3 . Core . | . . . Reactor . | . . . Propulsion 10 | 5 4 1 Treads . | . . . Leg 2 | 2 . . Wheel 8 | 3 4 1 Hover . | . . . Flight . | . . . Utility 6 | 3 3 . Device 3 | 2 1 . Storage 3 | 1 2 . Processor . | . . . Hackware . | . . . Protection . | . . . Artifact . | . . . Weapon 13 | 2 9 2 Energy Gun 1 | 1 . . Energy Cannon 6 | . 5 1 Ballistic Gun 2 | 1 1 . Ballistic Cannon 1 | . 1 . Launcher 1 | . . 1 Special Weapon . | . . . Impact Weapon 2 | . 2 . Slashing Weapon . | . . . Piercing Weapon . | . . . Special Melee Weapon . | . . . Unidentified Prototypes . | . . . Parts Lost 7 | . 4 3 Power 1 | . 1 . Propulsion 5 | . 2 3 Utility . | . . . Weapon 1 | . 1 . Highest Loss Streak 3 | . 3 2 To Critical Strikes . | . . . Average Slot Usage (%) 99 | . 99 99 Engine 14 | . 14 14 Wheel 27 | . 27 27 Device 14 | . 14 14 Storage 14 | . 14 14 Energy Gun 3 | . 4 . Energy Cannon 13 | . 10 27 Ballistic Gun 5 | . 6 . Ballistic Cannon 2 | . 3 . Impact Weapon 2 | . 3 . Naked Turns . | . . . Heaviest Build 34 | 14 34 34 Greatest Support 32 | 32 32 26 Greatest Overweight (x) 2 | 1 1 2 Average Overweight (x) . | . . 1 Largest Inventory Capacity 15 | 8 15 15 Average Capacity 14 | 7 14 15 Most Carried 15 | 8 15 15 Average Carried 12 | 4 12 14 Final Capacity 15 | 8 15 15 Final Carried 15 | 8 14 15 Class Distribution -------------------- 100% | Mutant Dominant Class ---------------- Mutant | -10/Materials Mutant | -10/Mines Resources | -11 -10 -10 ----------- Run | Jun Mat Min Matter Collected 597 | 262 294 41 Remotely . | . . . Salvage Created 509 | 106 346 57 Parts 25 | 9 13 3 Haulers Intercepted 1 | . 1 . Recyclers Shooed . | . . . Parts Field Recycled . | . . . Retrieved Matter . | . . . Parts Self-Destructed . | . . . Prevented . | . . . Kills | -11 -10 -10 ------- Run | Jun Mat Min Combat Hostiles Destroyed 12 | . 6 6 Guns 5 | . 5 . Cannons 6 | . 1 5 AOE 1 | . . 1 Classes Destroyed 7 | 2 3 2 Tunneler 2 | 2 . . Hauler 1 | . 1 . Recycler 1 | 1 . . Watcher 2 | . 2 . Swarmer 3 | . . 3 Grunt 6 | . 6 . Assembled 3 | . . 3 Best Kill Streak 4 | 1 4 3 Combat Bots Only 4 | . 4 3 Max Kills in Single Turn 1 | 1 1 1 Gunslinging . | . . . Exploded 1 | . . 1 Melee . | . . . Uniques/NPCs Destroyed . | . . . Combat | -11 -10 -10 -------- Run | Jun Mat Min Damage Taken 855 | . 434 421 Core 274 | . 114 160 Absorbed by Shields . | . . . Regen/Repaired (Parts) 61 | . 61 . Core Remaining (%) 100 | 100 . . Volleys Fired 53 | 7 36 10 Largest 2 | 2 2 2 Hottest 136 | 70 85 136 Shots Fired 104 | 14 71 19 Gun 76 | 14 62 . Cannon 27 | . 9 18 Launcher 1 | . . 1 Special . | . . . Kinetic 44 | 7 37 . Thermal 59 | 7 34 18 Explosive 1 | . . 1 Electromagnetic . | . . . Robot Hit Streak 9 | 3 9 7 Robot Miss Streak 4 | 2 4 1 Penetration Max . | . . . Secondary Targets 2 | . 2 . Max Gunslinging Chain 1 | . 1 . Shots Hit Robots 58 | 7 44 7 Core Hits 33 | 4 22 7 Critical Kills . | . . . Critical Parts Destroyed . | . . . Critical Strikes 3 | 1 2 . Burn 3 | 1 2 . Melee Attacks 30 | . 30 . Impact 30 | . 30 . Slashing . | . . . Piercing . | . . . Sneak Attacks . | . . . Combat Hostiles . | . . . Follow-up Attacks . | . . . Damage Inflicted 847 | 77 546 224 Guns 483 | 77 406 . Cannons 282 | . 140 142 Explosions 82 | . . 82 Melee . | . . . Ramming . | . . . Kinetic 326 | 26 300 . Thermal 439 | 51 246 142 Explosive 82 | . . 82 Electromagnetic . | . . . Impact . | . . . Slashing . | . . . Piercing . | . . . Highest Corruption 1 | . 1 1 Average Corruption 1 | . 1 1 Corruption Purged . | . . . Corruption Blocked . | . . . Effects 9 | . 6 3 Message Errors 2 | . 1 1 Matter Fused 2 | . 1 1 Heat Flow Errors 1 | . 1 . Parts Fused 1 | . . 1 Data Loss (minor) 2 | . 2 . Data Loss (major) 1 | . 1 . Overload Shots . | . . . Overflow Damage 1 | . . 1 Projectiles . | . . . Explosions 1 | . . 1 Melee . | . . . Knockbacks 2 | . 2 . Impact . | . . . Kinetic 2 | . 2 . Secondary . | . . . Self-Inflicted Damage 28 | . . 28 Shots 1 | . . 1 Rammed . | . . . Targets Rammed . | . . . Kicked . | . . . Crushed . | . . . Highest Temperature 342 | 80 342 66 Average Temperature 99 | 36 123 25 Received Heat Transfer 252 | . 243 9 Effects 1 | . 1 . Energy Bleed 1 | . 1 . Siege Activations . | . . . Robots Corrupted . | . . . Combat Hostiles . | . . . Parts Fried . | . . . Impact Corruptions . | . . . Robots Melted . | . . . Combat Hostiles . | . . . Parts Melted 2 | 1 1 . Heat Transferred 1332 | 222 851 259 Parts Sabotaged . | . . . Parts Stolen . | . . . Parts Stripped . | . . . Power Chain Reactions . | . . . Missiles Intercepted . | . . . Alert | -11 -10 -10 ------- Run | Jun Mat Min Peak Influence 145 | 15 145 82 Initial 11 | . 9 11 Average 46 | 5 43 80 Maximum Alert Level . | . . . Low Security (%) 100 | 100 100 100 Level 1 . | . . . Level 2 . | . . . Level 3 . | . . . Level 4 . | . . . Level 5 . | . . . High Security . | . . . Max Security . | . . . Squads Dispatched . | . . . Investigation . | . . . Extermination . | . . . Reinforcement . | . . . Assault . | . . . Garrison . | . . . Intercept . | . . . Searches Triggered . | . . . Construction Impeded . | . . . Haulers Reinforced . | . . . Active Scanning Responses . | . . . Cargo Convoy Interrupts . | . . . Stealth | -11 -10 -10 --------- Run | Jun Mat Min Distress Signals . | . . . Communications Jammed . | . . . Distress Signals . | . . . Times Spotted 25 | . 14 11 Peak Tracking Total 6 | . 4 6 Tactical Retreats 1 | . . 1 Traps | -11 -10 -10 ------- Run | Jun Mat Min Traps Triggered . | . . . Indirectly . | . . . Trap Hack Attempts . | . . . Triggered . | . . . Disarmed . | . . . Reprogrammed . | . . . Reused . | . . . Traps Extracted . | . . . Installed . | . . . Triggered . | . . . Machines | -11 -10 -10 ---------- Run | Jun Mat Min Machines Disabled 1 | . 1 . Max in Single Turn 1 | . 1 . Machines Repaired . | . . . Machines Sabotaged . | . . . Overloaded Fab Kills . | . . . Hacking | -11 -10 -10 --------- Run | Jun Mat Min Machines Accessed 11 | . 11 . Terminals 8 | . 8 . Fabricators . | . . . Repair Stations 1 | . 1 . Recycling Units 2 | . 2 . Scanalyzers . | . . . Garrison Access . | . . . Total Hacks 37 | . 37 . Successful 21 | . 21 . Failed 15 | . 15 . Catastrophic 1 | . 1 . Database Lockouts 1 | . 1 . Manual 17 | . 17 . Terminals 26 | . 26 . Fabricators . | . . . Repair Stations 7 | . 7 . Recycling Units 4 | . 4 . Scanalyzers . | . . . Garrison Access . | . . . Terminal Hacks 7 | . 7 . Robot Analysis 2 | . 2 . Terminal Index 1 | . 1 . Locate Traps 3 | . 3 . Patrol Status 1 | . 1 . Fabricator Hacks . | . . . Repair Station Hacks 6 | . 6 . Scan Component 3 | . 3 . Repair 3 | . 3 . Recycling Unit Hacks 1 | . 1 . Retrieve Components 1 | . 1 . Scanalyzer . | . . . Garrison Access Hacks . | . . . Unauthorized Hacks 7 | . 7 . Terminals 6 | . 6 . Track 1 | . 1 . Botnet 4 | . 4 . Operators 1 | . 1 . Fabricators . | . . . Repair Stations . | . . . Recycling Units 1 | . 1 . Reject 1 | . 1 . Scanalyzers . | . . . Garrison Access . | . . . Data Cores Recovered . | . . . Used . | . . . Hacking Detections 10 | . 10 . Full Trace Events . | . . . Feedback Events . | . . . Feedback Blocked . | . . . Robot Schematics Acquired . | . . . Robots Built . | . . . Authchips . | . . . Time . | . . . Total Robot Build Rating . | . . . Part Schematics Acquired . | . . . Parts Built . | . . . Authchips . | . . . Time . | . . . Total Part Build Rating . | . . . Parts Repaired 3 | . 3 . Time 84 | . 84 . Parts Recycled . | . . . Recycled Matter . | . . . Retrieved Matter . | . . . Retrieved Components 10 | . 10 . Parts Scanalyzed . | . . . Part Schematics Acquired . | . . . Parts Damaged . | . . . Bothacking | -11 -10 -10 ------------ Run | Jun Mat Min Used RIF Installer . | . . . Robots Hacked . | . . . Non-combat . | . . . Combat . | . . . Robot Hacks Applied . | . . . Relay Couplers Released . | . . . Fabnet Peak Effective % . | . . . Robots Rewired . | . . . Allies Hacked . | . . . Hacks Repelled . | . . . Allies | -11 -10 -10 -------- Run | Jun Mat Min Total Allies . | . . . Largest Group . | . . . Highest-Rated Group . | . . . Highest-Rated Ally . | . . . Total Orders . | . . . Ally Attacks . | . . . Total Damage . | . . . Kills . | . . . Allies Corrupted . | . . . Allies Melted . | . . . Intel | -11 -10 -10 ------- Run | Jun Mat Min Robot Analysis Total 2 | . 2 . Derelict Logs Recovered . | . . . Drone Launches . | . . . Drone Recoveries . | . . . Exploration | -11 -10 -10 ------------- Run | Jun Mat Min Turns Passed 2002 | 139 1533 330 Spaces Moved 1390 | 80 1075 235 Core 7 | 7 . . Treads . | . . . Legs 42 | 42 . . Wheels 1341 | 31 1075 235 Hover . | . . . Flight . | . . . Fastest Speed 50 | 50 100 105 Average Speed 105 | 117 104 105 Slowest Speed 190 | 190 105 130 Overloaded Moves . | . . . Propulsion Burnouts . | . . . Robots Hopped . | . . . Cave-ins Triggered 1 | . . 1 Exploration Rate (%) 48 | 4 98 42 Regions Visited 2 Branch Regions 1 Pre-discovered Areas . | . . . Known Exits Taken . | . . . Unknown Exits Taken 2 | 1 1 . Scrap Searched . | . . . Spaces Dug 18 | . 1 17 Terrain Destroyed 18 | . 1 17 Melee 1 | . 1 . Projectile 6 | . . 6 AOE 11 | . . 11 Terrain Rammed . | . . . Walls Destroyed . | . . . Machines Disabled . | . . . Actions | -11 -10 -10 --------- Run | Jun Mat Min Total 1775 | 110 1368 297 Wait 217 | . 171 46 Move 1387 | 79 1074 234 Hop . | . . . Pick Up 35 | 9 23 3 Fast Attach 9 | 8 1 . Attach 12 | 2 9 1 Detach 3 | 1 2 . Swap 12 | 1 9 2 Drop 17 | 3 13 1 Fire 53 | 7 36 10 Melee 30 | . 30 . Ram . | . . . Kick . | . . . Crush . | . . . Escape Stasis . | . . . Rewire . | . . . Trap . | . . . Miscellaneous . | . . . Route ------- -11/Junkyard -10/Materials (discovered 4 exits: [*Mat x3] / [*Min]) -10/Mines History --------- Turn | Location | Event 36 | -11/Junkyard | Discovered new exit (range 14) 140 | -11/Junkyard | Entered Materials 157 | -10/Materials | Central database locked down 167 | -10/Materials | Discovered new exit (range 6) 291 | -10/Materials | Lost 3 parts (1p2n) 305 | -10/Materials | Build established: Mutant 645 | -10/Materials | Discovered new exit (range 11) 1061 | -10/Materials | Discovered new exit (range 14) 1134 | -10/Materials | Repaired Hvy. EM Pulse Gun 1236 | -10/Materials | Discovered new exit (range 10) 1494 | -10/Materials | Repaired Com. Wheel 1522 | -10/Materials | Repaired Wheel 1673 | -10/Materials | Entered Mines 1680 | -10/Mines | Core integrity fell below 50% 1708 | -10/Mines | Received a Rocket Launcher from a helpful Derelict 1725 | -10/Mines | Joined a pair of Derelicts in attacking an 0b10 outpost 1822 | -10/Mines | Assembled infested the area 2003 | -10/Mines | Crushed by falling debris 2003 | -10/Mines | Smashed by cave-in Last Messages --------------- 01836_ as-80050 destroyed. 01844_ as-90098 destroyed. 01849_ as-68174 destroyed. 01849_ Destroyed Asb. Hover Unit. 01849_ Wheel destroyed. 01851_ The unstable cave ceiling collapses. 01852_ as-68028 destroyed. 01860_ Acquired 26 matter. 01875_ Acquired Core Shielding. 01878_ Acquired 10 matter. 01882_ System corrupted: Particle Cannon fused. 01927_ R-06 Scavenger collects Unknown Leg. 01934_ U-05 Engineer lays Concrete. 01944_ U-05 Engineer builds a Wall. 02003_ The unstable cave ceiling collapses. 02003_ Crushed by falling debris. 02003_ Wheel destroyed. 02003_ System corrupted by crushing effect (+3). 02003_ Com. Wheel destroyed. 02003_ System corrupted by crushing effect (+5). Map ----- +----------------------------------------------------+ | # #?????????????????????????????????????????? | | ## ##????????????????????????????????????????? | | ## ##???????????????????????????????????????? | | # #???????????????????????????????????????? | | #???????????????????????????????????????? | | #???????????????????????????????????????? | | ##???????????????????????????????????????? | | ####????????????????????????????????????????? | | ##?????????#?????????????????????????????????? | | #???????? ###%??????????????????????????????? | | # ##??????? " ?????????????????????????????? | | # ##????### ?????????????????????????????? | | # ###### ????????????????????????????? | | ????????????????????????????? | | % %% ????????????????????????????? | | # ### ## ## #?? ????????????????????????????? | | ###?# ###? ##?????? ????????????????????????????? | | #???# #?????????? #???????????????????????????? | | #???### #?###?????# ???????????????????????????? | | #?????#%### #??? ?# ???????????????????????????? | | ?????##= #""##?? ## #???????????????????????????? | | ????## % ""#??# # #?#?????????????????????????? | | ????# ##??? # ??????????????????????????? | | ????# #### # ??????????????????????????? | | ????# #? ??###??????????????????????? | | ????## ## #? ####@##?????????????????????? | | ?????##" ### ### # ### ##????????????????????? | | ??????### ### #? ##### #????????????????????? | | ????????# ## ### #?# #????????????????????? | | ????????## ## %##???# ##???????????????????? | | ?????????# ##### %%#???## ##??????????????????? | | ?????????## ##??# %%##??### #??????????????????? | | #????????# #??## %% ##?# ##??????????????????? | | #????????# #???## %% ###"##########???????????? | | #??????## #????## %%% #???????? | | ##??????# #?????## % ???????? | | #???????### #??????##################??????????? | | ??????????#####??????????????????????????????????? | | ?????????????????????????????????????????????????? | | ?????????????????????????????????????????????????? | | ?????????????????????????????????????????????????? | | ?????????????????????????????????????????????????? | | | | | | | | | | | | | | | | | +----------------------------------------------------+ Best States ------------- Heat Dissipation 39 Energy Generation 10 Energy Capacity 250 Matter Stores 300 Matter Capacity 300 Sight Range 16 Terrain Scan Range 16 Terrain Scan Density 10 Evasion (%) 50 Item Schematics ----------------- None Robot Schematics ------------------ None Fabricated ------------ Nothing Alien Tech Used ----------------- None Achievements -------------- None Challenges ------------ None Game ------ Seed LargeArchitectCasing Manual? 0 Play Time 00:17:29 Cumulative 547.5 hours Start 2023.03.09 @ 00:10:17 End 2023.03.09 @ 00:28:19 Sessions 1 Manual Loads 0 Difficulty Rogue Special Mode None Game No. 392 Rogue 392 Adventurer 0 Explorer 0 Win Type - Total 1 Types 1/0/0/0/0/0/0/0/0 Lore% 69 Gallery% 78 Achievement% 58 Wizard Run 0 Options --------- ASCII 0 Keyboard 0 Movement Mouse Keybinds 0 Fullscreen 1 Font 16/SmallcapsGlow Map View 75x55 Tactical HUD 1 Map Filters NONE Filters NONE Steam 1 RUN: 92559551-106d-4052-9bc2-ebcef710938a